bitfinex/quotes_ETHUSD_20250424
["timestamp","ask_amount","ask_price","bid_price","bid_amount"]
[1745513300935,8.64025925,1773.0,1772.7,0.14215607]
[1745513301263,8.64025925,1773.0,1772.6,6.46557566]
[1745513301446,8.64025925,1773.0,1772.8,0.14213448]
[1745513301633,8.64025925,1773.0,1772.6,6.46557566]
[1745513301634,8.64025925,1773.0,1772.7,0.14215607]
[1745513301832,11.07854565,1773.0,1772.9,0.1421129]
[1745513302168,4.55842205,1773.0,1772.9,0.1421129]
[1745513302327,1.55842205,1773.0,1772.7,5.64104216]
[1745513302526,9.47087847,1773.1,1772.8,0.14213448]
[1745513302827,5.64018089,1773.0,1772.6,6.4656678]
[1745513303066,8.64018089,1773.0,1772.9,0.1421129]
[1745513303224,3.0,1773.0,1772.6,6.4656678]
[1745513303534,3.0,1773.0,1772.6,6.46559693]
[1745513303735,3.0,1773.0,1772.7,0.14215607]
[1745513303934,3.0,1773.0,1772.6,7.67631353]
[1745513304246,3.0,1773.0,1772.7,0.14215607]
[1745513304622,3.0,1773.0,1772.6,7.67631353]
[1745513304823,3.0,1773.0,1772.8,0.14213448]
[1745513305055,8.64017861,1773.0,1772.7,0.14215607]
[1745513305262,10.15128432,1773.0,1772.9,0.1421129]
[1745513305423,10.20754867,1773.0,1772.8,0.14213448]
[1745513305619,4.51110571,1773.0,1772.9,0.1421129]
[1745513305857,3.0,1773.0,1772.9,0.1421129]
[1745513306063,3.0,1773.0,1772.7,5.64109799]
[1745513306239,3.0,1773.0,1772.9,0.14317431]
[1745513306439,8.64015792,1773.0,1772.8,0.1431959]
[1745513306663,3.0,1773.0,1772.9,0.14317431]
[1745513306833,9.58725408,1773.0,1772.9,0.14317431]
[1745513307160,3.94709616,1773.0,1772.9,0.14317431]
[1745513307359,9.58725408,1773.0,1772.6,6.46560011]
[1745513307559,8.64015792,1773.0,1772.7,0.14321748]
[1745513307727,6.43119471,1772.8,1772.4,11.35525394]
[1745513307921,5.6412733,1772.7,1772.5,0.14326066]
[1745513308464,5.6412733,1772.7,1772.3,6.46377343]
[1745513308637,8.6412733,1772.7,1772.6,0.14262442]
[1745513308957,10.14852539,1772.7,1772.6,0.14363025]
[1745513309264,10.14852539,1772.7,1772.3,0.8214]
[1745513309446,10.14852539,1772.7,1772.6,0.14363843]
[1745513309620,5.64156915,1772.6,1772.3,0.8214]
[1745513309822,12.86230557,1772.6,1772.2,0.8299]
[1745513310237,12.86230557,1772.6,1772.3,0.66537757]
[1745513310443,5.64184951,1772.5,1772.3,0.66537757]
[1745513310658,7.47303869,1772.5,1772.3,0.66537757]
[1745513310957,7.2205295,1772.6,1772.3,6.30748319]
[1745513310958,1.57900945,1772.6,1772.3,6.30748319]
[1745513311262,0.7722,1773.1,1772.7,5.64096239]
[1745513311559,3.0,1773.0,1772.8,0.13440798]
[1745513311764,0.7722,1773.1,1772.7,5.64104917]
[1745513312066,4.4133914,1773.1,1772.8,0.13440798]
[1745513312362,6.41151206,1773.3,1772.9,5.64032385]
[1745513312665,9.41153584,1773.3,1773.0,0.13436073]
[1745513312840,6.41088512,1773.5,1773.0,0.13436073]
[1745513313030,3.0,1773.4,1773.0,5.63997339]
[1745513313231,0.7722,1773.5,1773.1,0.13429414]
[1745513313566,3.7722,1773.5,1773.1,6.29522608]
[1745513313760,0.7722,1773.5,1773.1,0.13429414]
[1745513313967,0.7722,1773.5,1773.2,5.63948368]
[1745513314154,7.90272451,1773.7,1773.3,0.13422237]
[1745513314335,0.7911,1773.9,1773.5,5.63846168]
[1745513314539,10.98601703,1774.0,1773.6,5.77238724]
[1745513314767,11.04228138,1774.0,1773.6,0.13415768]
[1745513315242,5.63747002,1773.9,1773.6,0.13415768]
[1745513315441,10.98601703,1774.0,1773.6,0.13415768]
[1745513315655,3.0,1773.8,1773.4,0.8092]
[1745513315969,6.79230895,1773.9,1773.5,0.52141899]
[1745513316269,5.63769033,1773.8,1773.5,0.65559823]
[1745513316768,3.0,1773.8,1773.5,0.13417924]
[1745513316940,5.348819,1774.0,1773.6,5.63806648]
[1745513317267,0.427819,1774.0,1773.7,5.77196628]
[1745513317566,3.427819,1774.0,1773.7,5.77204557]
[1745513317730,0.427819,1774.0,1773.7,5.77204557]
[1745513317925,0.427819,1774.0,1773.8,5.63751325]
[1745513318158,0.427819,1774.0,1773.9,6.54899534]
[1745513318364,0.427819,1774.0,1773.9,8.34504179]
[1745513318666,0.427819,1774.0,1773.9,17.42987816]
[1745513318873,0.427819,1774.0,1773.9,18.19591072]
[1745513320046,0.427819,1774.0,1773.9,13.25337435]
[1745513320833,0.427819,1774.0,1773.9,18.19591072]
[1745513321475,5.75,1774.9,1774.5,5.63513969]
[1745513321646,11.38430749,1774.9,1774.5,0.56351397]
[1745513321850,3.0,1774.8,1774.6,0.11196174]
[1745513322051,6.46430749,1774.9,1774.6,5.74699013]
[1745513322052,0.83,1774.9,1774.6,5.74699013]
[1745513322275,0.83,1774.9,1774.6,0.11196174]
[1745513322480,3.83,1774.9,1774.6,0.11196174]
[1745513322796,6.46436303,1774.9,1774.6,0.11196174]
[1745513323240,3.88626435,1774.9,1774.6,0.11196174]
[1745513323450,3.83,1774.9,1774.6,0.11196174]
[1745513323750,3.83,1774.9,1774.7,0.11195246]
[1745513323978,3.83,1774.9,1774.4,6.46743735]
[1745513323979,9.46413516,1774.9,1774.4,6.46743735]
[1745513324138,3.83,1774.9,1774.5,0.11199552]
[1745513324343,5.63486432,1774.7,1774.1,0.8318]
[1745513324554,9.07387353,1774.8,1774.1,0.8318]
[1745513324555,3.383,1774.8,1774.2,5.74811783]
[1745513324755,5.63494443,1774.7,1774.2,5.74811783]
[1745513324969,5.63524351,1774.6,1774.2,0.11206012]
[1745513325281,0.383,1774.8,1774.4,5.6354297]
[1745513325480,6.01744172,1774.8,1774.4,5.6354297]
[1745513325773,3.83,1774.9,1774.5,5.7472337]
[1745513326287,0.88386435,1775.1,1774.5,6.5747337]
[1745513326444,12.15112974,1775.1,1774.6,5.63488646]
[1745513326642,12.09486539,1775.1,1774.6,5.63488646]
[1745513326855,2.52898654,1775.1,1774.7,5.74650742]
[1745513327056,3.0,1775.0,1774.7,5.74650742]
[1745513327662,3.0,1775.0,1774.7,5.74648912]
[1745513327870,6.43279795,1775.3,1774.8,5.63416137]
[1745513328243,6.43996204,1775.0,1774.9,0.10984891]
[1745513328455,8.63433049,1774.9,1774.5,0.8275]
[1745513328655,5.69089384,1774.8,1774.4,4.915]
[1745513328993,5.63598003,1774.4,1774.1,0.8296]
[1745513329151,0.05626435,1774.5,1774.1,0.8296]
[1745513329487,3.0,1774.7,1774.3,5.63582665]
[1745513329647,6.39049592,1774.9,1774.3,5.63579394]
[1745513329847,5.63451764,1774.8,1774.3,5.63579394]
[1745513330080,0.7562,1774.9,1774.4,5.63559289]
[1745513330286,5.63490701,1774.7,1774.5,0.826]
[1745513330673,5.63457401,1774.8,1774.5,0.826]
[1745513330870,5.63483207,1774.7,1774.3,11.3760219]
[1745513331054,5.63483207,1774.7,1774.3,5.74]
[1745513331589,5.6351687,1774.6,1774.3,5.74]
[1745513332151,8.69132828,1774.7,1774.1,3.14374606]
[1745513332490,5.63612511,1774.3,1773.9,2.01745086]
[1745513332788,5.63590147,1774.4,1773.9,7.65456595]
[1745513332991,5.63590147,1774.4,1774.0,6.40233739]
[1745513333294,5.63666084,1774.1,1774.0,0.7654566]
[1745513333587,5.63666084,1774.1,1773.8,4.914]
[1745513334453,5.63664504,1774.2,1773.7,6.41262381]
[1745513334791,5.63671336,1774.1,1773.7,0.7749]
[1745513334993,11.27365359,1774.1,1773.7,0.7749]
[1745513335194,5.63726026,1774.0,1773.7,0.7749]
[1745513335494,5.63738935,1773.9,1773.7,1.34379]
[1745513335699,5.63761416,1773.8,1773.4,5.7355]
[1745513335915,5.63779796,1773.8,1773.4,5.7355]
[1745513336200,5.63779796,1773.8,1773.4,11.37438323]
[1745513336395,8.63711935,1774.0,1773.5,5.63845151]
[1745513336694,8.63711935,1774.0,1773.6,0.56384515]
[1745513336897,5.63737323,1773.9,1773.6,0.56384515]
[1745513337293,8.63711129,1774.0,1773.4,5.7355]
[1745513337294,5.63766305,1773.8,1773.4,5.7355]
[1745513337601,5.63766305,1773.8,1773.4,11.37436466]
[1745513338176,8.63681419,1774.1,1773.6,5.63798212]
[1745513338403,3.0,1773.9,1773.4,11.37419358]
[1745513338566,3.0,1773.9,1773.5,6.77572814]
[1745513338898,8.69295809,1774.1,1773.5,1.13741936]
[1745513339061,5.63739414,1773.9,1773.5,1.13741936]
[1745513339262,5.63739414,1773.9,1773.5,6.77595406]
[1745513341596,5.63725764,1774.0,1773.6,0.52033453]
[1745513341903,5.63751384,1773.9,1773.5,6.77583355]
[1745513342198,5.63703142,1774.0,1773.6,0.67758336]
[1745513342401,3.0,1774.1,1773.6,0.67758336]
[1745513342613,5.63750411,1773.9,1773.7,0.52076895]
[1745513343109,3.05626435,1774.1,1773.8,6.15827862]
[1745513343110,3.0,1774.1,1773.8,6.15827862]
[1745513343275,3.0,1774.2,1773.8,6.15827862]
[1745513343476,6.46657082,1774.4,1774.0,5.63684459]
[1745513343813,5.6360799,1774.3,1774.1,0.10985941]
[1745513343998,5.6360799,1774.3,1773.9,6.15795892]
[1745513344314,5.63666084,1774.1,1774.0,0.10837776]
[1745513344486,5.63666084,1774.1,1774.0,0.62914671]
[1745513344687,0.7871,1774.1,1774.0,0.62914671]
[1745513344902,0.7871,1774.1,1773.8,5.63748551]
[1745513345084,6.42380392,1774.1,1774.0,0.10837776]
[1745513345282,5.63697857,1774.0,1773.9,0.10884466]
[1745513345486,5.63697857,1774.0,1773.7,0.52158766]
[1745513345487,5.6373852,1773.9,1773.7,0.52158766]
[1745513345689,5.63712736,1774.0,1773.7,0.52158766]
[1745513346011,11.27438045,1774.0,1773.8,0.52158766]
[1745513346238,9.42393811,1774.1,1773.8,0.52158766]
[1745513346411,3.0,1774.2,1773.9,6.40759338]
[1745513346711,5.63520011,1774.6,1774.2,6.40674781]
[1745513347009,5.63572506,1774.4,1774.0,1.926447]
[1745513347374,5.63603549,1774.3,1774.1,0.52158766]
[1745513347979,5.63603549,1774.3,1774.0,0.7641]
[1745513347980,5.63572506,1774.4,1774.2,0.52158766]
[1745513348412,3.0,1774.4,1774.2,0.52158766]
[1745513348618,3.0,1774.4,1774.3,0.52158766]
[1745513348619,8.63587437,1774.4,1774.3,0.52158766]
[1745513348816,8.69213872,1774.4,1774.3,0.52158766]
[1745513349113,8.69213872,1774.4,1774.0,0.7641]
[1745513349412,8.63587437,1774.4,1774.0,6.40097843]
[1745513349717,8.63587437,1774.4,1774.1,0.52158256]
[1745513349902,8.63587437,1774.4,1774.2,0.52158256]
[1745513350308,8.63587437,1774.4,1774.1,0.52158256]
[1745513350781,8.69213872,1774.4,1774.1,0.52158256]
[1745513350985,5.63605767,1774.3,1774.2,0.52158256]
[1745513351614,8.63587437,1774.4,1774.1,0.52158256]
[1745513351819,5.63619434,1774.3,1774.1,0.52158256]
[1745513352117,5.63634314,1774.2,1774.1,0.52158256]
[1745513352322,5.63675324,1774.1,1773.9,4.915]
[1745513352616,5.63723235,1774.0,1773.6,11.37232177]
[1745513352821,5.63749313,1773.9,1773.7,1.13723218]
[1745513353125,3.0,1774.0,1773.7,6.7751439]
[1745513353304,8.63699197,1774.0,1773.8,0.52205973]
[1745513354090,8.63699197,1774.0,1773.9,0.52205973]
[1745513355225,5.63699197,1774.0,1773.9,0.62995808]
[1745513355424,12.08690006,1774.1,1773.9,0.62995808]
[1745513355724,5.63697857,1774.0,1773.9,0.62995808]
[1745513356949,8.63697857,1774.0,1773.9,0.62995808]
[1745513357122,10.14566992,1774.0,1773.9,0.62995808]
[1745513357634,8.63697857,1774.0,1773.9,0.10789835]
[1745513357794,14.27422845,1774.0,1773.6,0.8192]
[1745513357994,8.63697857,1774.0,1773.7,0.10923962]
[1745513358200,6.422373,1774.3,1773.8,0.52255613]
[1745513358400,5.6358044,1774.4,1773.9,6.52195579]
[1745513358599,5.6358044,1774.4,1774.0,6.81159986]
[1745513358799,11.3367962,1774.5,1774.1,0.10930819]
[1745513359049,5.63595731,1774.4,1774.1,0.10930819]
[1745513359338,0.7862,1774.5,1774.1,0.10930819]
[1745513359339,5.63634314,1774.2,1774.1,0.10930819]
[1745513359737,5.63599727,1774.4,1774.1,0.10930819]
[1745513360044,5.63599727,1774.4,1774.1,0.63224829]
[1745513360340,5.63599727,1774.4,1774.2,0.5229401]
[1745513360838,5.63599727,1774.4,1774.3,0.10770625]
[1745513361023,5.63599727,1774.4,1774.3,0.63064635]
[1745513361456,8.63599727,1774.4,1774.3,0.63064635]
[1745513361650,9.00825618,1774.4,1774.3,0.10770625]
[1745513361834,11.48198319,1774.4,1774.3,0.10770625]
[1745513362033,5.63722207,1774.0,1773.8,0.5238752]
[1745513362236,5.63722207,1774.0,1773.9,0.10801511]
[1745513362573,8.69348642,1774.0,1773.9,0.5238752]
[1745513362878,9.40472207,1774.0,1773.9,0.5238752]
[1745513363086,9.46098642,1774.0,1773.9,0.5238752]
[1745513363244,9.77698098,1774.0,1773.9,0.5238752]
[1745513363429,4.08349456,1774.0,1773.9,0.5238752]
[1745513363629,3.31599456,1774.0,1773.9,0.5238752]
[1745513363874,3.0,1774.0,1773.9,0.5238752]
[1745513364077,8.69324292,1774.0,1773.9,0.5238752]
[1745513364280,8.63697857,1774.0,1773.9,0.5238752]
[1745513364478,3.0,1774.0,1773.9,0.5238752]
[1745513364783,11.27384779,1774.1,1773.9,0.5238752]
[1745513364966,11.27384779,1774.1,1774.0,0.5238752]
[1745513364967,5.63687169,1774.1,1774.0,0.5238752]
[1745513365168,8.63687169,1774.1,1774.0,0.5238752]
[1745513365864,10.19776174,1774.1,1774.0,0.5238752]
[1745513366063,5.63740987,1773.9,1773.5,6.44183391]
[1745513366670,5.63763362,1773.8,1773.6,0.52407724]
[1745513366873,5.637932,1773.7,1773.6,0.52407724]
[1745513367073,5.63826345,1773.6,1773.3,5.7425]
[1745513367393,5.63866781,1773.5,1773.3,6.88069066]
[1745513367545,5.63866781,1773.5,1773.4,0.52414893]
[1745513367888,6.45946781,1773.5,1773.4,0.52414893]
[1745513368799,4.94091724,1773.9,1773.5,5.63838986]
[1745513368800,6.46753647,1773.9,1773.5,5.63838986]
[1745513369015,6.46745021,1773.9,1773.4,6.1630255]
[1745513369199,5.6376297,1773.8,1773.4,1.22008148]
[1745513369379,0.8301,1773.9,1773.5,0.52414893]
[1745513369380,5.63793829,1773.7,1773.5,0.52414893]
[1745513369583,5.63783295,1773.8,1773.5,0.52414893]
[1745513370115,5.63783295,1773.8,1773.6,0.52414893]
[1745513370495,11.27576097,1773.8,1773.6,0.52414893]
[1745513370701,5.63783295,1773.8,1773.3,12.07432708]
[1745513371002,5.63808739,1773.7,1773.4,1.73096866]
[1745513371243,5.6383416,1773.6,1773.4,0.52353595]
[1745513371376,5.63808739,1773.7,1773.4,0.52353595]
[1745513371808,5.63808739,1773.7,1773.5,0.52353595]
[1745513372005,11.27627739,1773.7,1773.5,0.52353595]
[1745513372189,11.27627302,1773.7,1773.3,0.7963]
[1745513372402,5.63835887,1773.6,1773.3,0.7963]
[1745513372775,5.63812383,1773.7,1773.3,0.7963]
[1745513372974,5.63780649,1773.8,1773.3,6.43548276]
[1745513373217,5.63711344,1774.0,1773.6,6.39433348]
[1745513373386,5.63734501,1773.9,1773.6,0.7563]
[1745513373908,5.63734501,1773.9,1773.7,0.52318285]
[1745513374093,5.95282961,1774.0,1773.7,0.52318285]
[1745513374298,5.95282961,1774.0,1773.6,0.7563]
[1745513374299,5.63731228,1773.9,1773.6,0.7563]
[1745513374507,11.59006835,1774.0,1773.6,6.39452534]
[1745513374816,5.95282961,1774.0,1773.6,6.39451466]
[1745513375221,5.63711344,1774.0,1773.6,6.39451466]
[1745513375417,11.27433375,1774.0,1773.7,0.52288752]
[1745513375621,5.63711344,1774.0,1773.7,0.52288752]
[1745513376008,5.63711344,1774.0,1773.8,0.52288752]
[1745513376416,6.4671289,1774.1,1773.7,5.63784138]
[1745513376747,1.64302701,1774.4,1774.0,5.63676204]
[1745513376925,5.63586854,1774.4,1774.0,5.63676204]
[1745513377102,5.6916,1774.5,1774.2,0.774]
[1745513377103,6.41411802,1774.5,1774.2,0.774]
[1745513377298,5.63528013,1774.6,1774.2,6.41018807]
[1745513377526,5.63539323,1774.5,1774.3,0.52259241]
[1745513378042,5.63539323,1774.5,1774.4,0.52259241]
[1745513378339,8.63539323,1774.5,1774.4,0.52259241]
[1745513378747,8.63539323,1774.5,1774.2,0.774]
[1745513379042,8.69165758,1774.5,1774.2,0.774]
[1745513379500,14.27109458,1774.5,1774.2,0.774]
[1745513379702,5.63601627,1774.4,1774.3,0.5223906]
[1745513380161,6.44391627,1774.4,1774.3,0.5223906]
[1745513380338,5.63626652,1774.3,1773.8,12.06369989]
[1745513380645,5.63646218,1774.2,1773.8,6.42628158]
[1745513380849,5.63646218,1774.2,1773.9,0.5226146]
[1745513381130,5.63646218,1774.2,1774.0,0.5226146]
[1745513381347,5.69292519,1774.1,1774.0,0.5226146]
[1745513381515,5.63666084,1774.1,1774.0,0.5226146]
[1745513381902,8.63650879,1774.2,1773.9,0.5226146]
[1745513382305,5.63689477,1774.1,1774.0,0.5226146]
[1745513382646,8.63650879,1774.2,1774.0,0.5226146]
[1745513382829,5.63666084,1774.1,1774.0,0.5226146]
[1745513383408,8.63650879,1774.2,1774.0,0.5226146]
[1745513383843,6.44373291,1774.4,1774.0,0.5226146]
[1745513384096,5.63583291,1774.4,1774.1,0.752]
[1745513384251,5.63583291,1774.4,1774.1,1.2746146]
[1745513385367,5.63583291,1774.4,1774.2,0.5226146]
[1745513385882,5.63583291,1774.4,1774.1,0.752]
[1745513386191,11.27178253,1774.4,1774.1,0.752]
[1745513386480,5.63613943,1774.3,1774.1,0.752]
[1745513386658,8.63593173,1774.4,1774.1,0.752]
[1745513387058,5.63614215,1774.3,1774.1,0.752]
[1745513387363,8.63593173,1774.4,1774.2,0.52243798]
[1745513387696,14.27192412,1774.4,1774.1,0.752]
[1745513387883,5.63614394,1774.3,1774.1,0.752]
[1745513388288,14.27192679,1774.4,1774.1,0.752]
[1745513388476,8.63593173,1774.4,1774.1,0.752]
[1745513388677,3.0,1774.4,1774.1,6.38839672]
[1745513388878,3.0,1774.4,1774.2,0.52235797]
[1745513389250,17.20210617,1774.9,1774.4,5.63546847]
[1745513389251,6.7088819,1774.9,1774.4,5.63546847]
[1745513389457,6.41477573,1774.9,1774.5,5.63528051]
[1745513389759,3.0,1774.9,1774.6,6.39256414]
[1745513390200,8.63421094,1774.9,1774.6,0.7575]
[1745513390367,8.63413733,1774.9,1774.7,0.52235797]
[1745513390797,5.63443957,1774.8,1774.6,0.7575]
[1745513391281,8.63413733,1774.9,1774.6,0.7575]
[1745513391446,14.26856316,1774.9,1774.6,0.7575]
[1745513391649,5.63448657,1774.8,1774.6,0.7575]
[1745513391845,5.63475516,1774.7,1774.3,0.7842]
[1745513392087,5.63517116,1774.6,1774.4,0.52149108]
[1745513392299,5.63514319,1774.6,1774.4,0.52149108]
[1745513392468,11.26978575,1774.7,1774.4,0.52149108]
[1745513392800,5.6348263,1774.7,1774.3,7.06225144]
[1745513393010,5.6348263,1774.7,1774.3,1.42622677]
[1745513393157,5.6348263,1774.7,1774.3,7.06221065]
[1745513393791,5.6348263,1774.7,1774.3,1.42622677]
[1745513394181,5.6348263,1774.7,1774.4,0.52120576]
[1745513394557,5.6348263,1774.7,1774.3,7.06223041]
[1745513395395,6.42951602,1774.8,1774.4,5.63567632]
[1745513395599,6.42951602,1774.8,1774.3,7.06203796]
[1745513395753,6.42951602,1774.8,1774.4,5.63569319]
[1745513395955,12.06419421,1774.8,1774.4,5.63569319]
[1745513396155,3.0,1774.9,1774.5,0.52084949]
[1745513396356,5.63456893,1774.8,1774.5,0.52084949]
[1745513396557,8.63425318,1774.9,1774.5,0.7777]
[1745513396887,8.63425318,1774.9,1774.5,6.412832]
[1745513397190,3.0,1774.9,1774.5,6.412832]
[1745513397489,3.0,1775.0,1774.8,0.7897]
[1745513398305,5.63302511,1775.3,1774.9,5.6340176]
[1745513398510,0.7686,1775.9,1775.4,0.7897]
[1745513398720,5.63085406,1776.0,1775.5,5.63203504]
[1745513399058,5.63106332,1775.9,1775.5,6.15219844]
[1745513399165,5.63104112,1775.9,1775.5,6.15219844]
[1745513399370,5.63104112,1775.9,1775.5,5.63203504]
[1745513400405,5.63128166,1775.8,1775.4,6.42203386]
[1745513400581,6.76289886,1775.9,1775.4,0.7897]
[1745513400779,6.76289886,1775.9,1775.4,6.42206898]
[1745513400780,5.63136714,1775.8,1775.4,6.42206898]
[1745513401093,5.63106737,1775.9,1775.5,5.63219153]
[1745513401297,5.6308182,1776.0,1775.5,5.63206284]
[1745513401501,5.6308182,1776.0,1775.6,0.56320628]
[1745513401805,5.63109491,1775.9,1775.6,0.56320628]
[1745513402002,5.63109491,1775.9,1775.4,6.42202509]
[1745513402711,5.63109491,1775.9,1775.3,4.91]
[1745513402712,5.63221627,1775.5,1775.3,4.91]
[1745513402898,5.63253857,1775.4,1775.2,0.8184]
[1745513403082,5.63273108,1775.4,1775.0,0.8184]
[1745513403282,5.63291597,1775.3,1775.0,0.8184]
[1745513403472,5.6333266,1775.2,1775.0,1.46362813]
[1745513403674,5.63371957,1775.1,1774.8,0.8184]
[1745513403905,5.63391502,1775.0,1774.8,0.8184]
[1745513404074,5.63412023,1774.9,1774.8,0.8184]
[1745513404596,5.63391502,1775.0,1774.8,0.8184]
[1745513404812,5.63365566,1775.1,1774.8,1.39114]
[1745513404988,5.6335147,1775.1,1774.8,1.39114]
[1745513405190,5.63266404,1775.4,1774.9,5.63388371]
[1745513405684,5.63336482,1775.2,1775.0,0.51932903]
[1745513405890,3.83776435,1775.5,1775.0,0.51932903]
[1745513406085,5.63327146,1775.2,1774.8,7.02546843]
[1745513406512,5.63327146,1775.2,1774.9,0.51950836]
[1745513406886,11.26604086,1775.3,1774.9,5.63401957]
[1745513407083,5.63330748,1775.2,1774.8,7.02535447]
[1745513407325,5.63406416,1775.0,1774.6,1.4692832]
[1745513407614,5.63406416,1775.0,1774.7,0.5196043]
[1745513407780,8.63443768,1774.8,1774.7,0.5196043]
[1745513408122,8.63443768,1774.8,1774.4,5.63559871]
[1745513408282,0.813,1775.1,1774.3,5.63602547]
[1745513408486,0.86926435,1775.1,1774.7,5.63469882]
[1745513408689,6.44666159,1775.1,1774.8,0.56346988]
[1745513408894,5.63380427,1775.0,1774.6,5.63499021]
[1745513409088,0.813,1775.1,1774.5,4.908]
[1745513409310,0.813,1775.1,1774.5,10.5433618]
[1745513409311,5.63431477,1774.9,1774.5,10.5433618]
[1745513409616,5.63431477,1774.9,1774.6,0.51978536]
[1745513410117,5.63431477,1774.9,1774.5,10.5433618]
[1745513410341,5.63431477,1774.9,1774.6,1.05433618]
[1745513410945,5.63396707,1775.0,1774.6,1.05433618]
[1745513411320,0.05626435,1775.2,1774.7,0.7546]
[1745513411521,5.63186347,1775.7,1775.0,0.7546]
[1745513411522,11.26549933,1775.4,1775.0,0.7546]
[1745513411743,5.63285577,1775.3,1775.0,0.7546]
[1745513411941,5.63285577,1775.3,1775.0,1.39345198]
[1745513412341,5.63271,1775.4,1775.0,1.39345198]
[1745513412515,5.63271,1775.4,1775.0,12.66075857]
[1745513412516,8.63265465,1775.4,1775.0,12.66075857]
[1745513412866,5.63221627,1775.5,1775.1,5.63330047]
[1745513413156,5.63221627,1775.5,1775.0,7.02705862]
[1745513413157,5.63262607,1775.4,1775.0,7.02713975]
[1745513413357,5.63231648,1775.5,1775.1,6.33596921]
[1745513413933,3.0,1775.7,1775.1,0.70271398]
[1745513414250,5.6327951,1775.4,1775.0,7.02720914]
[1745513414457,5.6320629,1775.6,1775.2,5.63315595]
[1745513414751,5.6320629,1775.6,1775.1,5.63326946]
[1745513414952,5.6320629,1775.6,1775.0,7.02708481]
[1745513414953,5.68848332,1775.5,1775.0,7.02708481]
[1745513415144,5.63263175,1775.4,1775.0,7.02708481]
[1745513415347,5.63263175,1775.4,1775.1,0.70270848]
[1745513415515,5.63295716,1775.3,1775.0,1.39345198]
[1745513415720,5.63263175,1775.4,1775.0,7.02709127]
[1745513415947,11.26546801,1775.4,1775.1,0.5199633]
[1745513416163,5.6329657,1775.3,1775.1,0.5199633]
[1745513416319,5.6329657,1775.3,1775.0,0.7546]
[1745513416519,5.63271686,1775.4,1775.0,6.38830902]
[1745513417016,5.63286391,1775.3,1775.0,0.7546]
[1745513417414,5.63257287,1775.4,1775.0,7.51794346]
[1745513417613,6.40070339,1775.5,1775.1,5.63333721]
[1745513417858,6.40070339,1775.5,1775.0,7.51794346]
[1745513417859,0.7684,1775.5,1775.2,5.63293232]
[1745513418035,5.63209281,1775.6,1775.2,5.63302536]
[1745513418221,11.26422585,1775.6,1775.2,5.63302536]
[1745513418422,5.63209281,1775.6,1775.2,5.63302536]
[1745513418735,3.0,1775.7,1775.3,6.46038262]
[1745513419057,3.0,1775.7,1775.4,5.63243917]
[1745513419437,5.63148557,1775.8,1775.4,5.63243917]
[1745513419638,11.26299741,1775.8,1775.4,5.63243917]
[1745513419960,3.7742,1775.9,1775.3,6.46025217]
[1745513419961,5.63169172,1775.7,1775.3,0.8276]
[1745513420159,8.63141592,1775.8,1775.4,6.15279864]
[1745513420654,5.63167499,1775.7,1775.3,7.21899869]
[1745513420852,5.63167499,1775.7,1775.3,1.58632161]
[1745513421053,5.63253936,1775.4,1775.1,0.7732]
[1745513421353,5.6324735,1775.5,1775.1,6.40667938]
[1745513421657,11.26500024,1775.5,1775.2,0.52042601]
[1745513421958,5.63255663,1775.4,1775.1,0.7732]
[1745513422525,5.63258003,1775.4,1775.1,0.7732]
[1745513422729,5.63238823,1775.5,1775.1,1.52685186]
[1745513422950,5.63238823,1775.5,1775.1,7.1602392]
[1745513423160,5.63238823,1775.5,1775.2,0.52038988]
[1745513423367,5.63221627,1775.5,1775.2,0.52038988]
[1745513423552,5.63266436,1775.4,1775.2,0.52038988]
[1745513423928,5.63266436,1775.4,1775.1,1.52685186]
[1745513425052,5.63266436,1775.4,1775.1,0.7732]
[1745513425227,5.63266436,1775.4,1775.2,0.52067856]
[1745513425737,5.63266436,1775.4,1775.1,0.7732]
[1745513425967,5.63238806,1775.5,1775.1,6.40649234]
[1745513426586,5.63238806,1775.5,1775.1,0.7732]
[1745513426877,5.63285486,1775.3,1775.2,0.52100178]
[1745513427683,14.3236946,1775.3,1775.2,0.52100178]
[1745513427981,14.63910967,1775.3,1775.2,0.52100178]
[1745513428182,5.63443768,1774.8,1774.5,0.7912]
[1745513428357,5.63507269,1774.6,1774.3,0.7912]
[1745513428672,5.63507269,1774.6,1774.4,0.52171926]
[1745513428882,5.63539025,1774.5,1774.4,0.52171926]
[1745513429252,5.63494534,1774.7,1774.4,0.52171926]
[1745513429594,5.63507427,1774.6,1774.4,0.52171926]
[1745513429801,5.63507427,1774.6,1774.5,0.52171926]
[1745513430091,5.63507427,1774.6,1774.4,0.52171926]
[1745513430394,5.63539025,1774.5,1774.4,0.52171926]
[1745513430690,5.63539025,1774.5,1774.3,0.52171926]
[1745513431051,5.63595208,1774.4,1774.1,0.8051]
[1745513431649,5.63615206,1774.3,1774.1,0.8051]
[1745513431861,6.42854759,1774.5,1774.1,0.8051]
[1745513432061,3.0,1774.5,1774.1,6.44169716]
[1745513432284,3.0,1774.5,1774.2,1.16576538]
[1745513432493,5.6354189,1774.5,1774.2,1.16576538]
[1745513432656,5.6354189,1774.5,1774.3,0.52159566]
[1745513433295,5.63527987,1774.6,1774.3,0.52159566]
[1745513433491,5.63527987,1774.6,1774.2,6.28049668]
[1745513433888,6.42790479,1774.7,1774.3,5.63601577]
[1745513434099,5.63509854,1774.6,1774.2,6.28049668]
[1745513434261,0.793,1774.7,1774.2,6.28033076]
[1745513434463,6.427901,1774.7,1774.3,6.15699317]
[1745513434667,6.427901,1774.7,1774.3,0.52097933]
[1745513434986,5.63507401,1774.6,1774.3,0.52097933]
[1745513435698,5.63507401,1774.6,1774.2,0.64416972]
[1745513435906,5.63507401,1774.6,1774.2,6.28048731]
[1745513436118,5.63507401,1774.6,1774.2,0.64416972]
[1745513436322,5.63546218,1774.5,1774.2,0.64416972]
[1745513436811,5.63546218,1774.5,1774.1,6.44165432]
[1745513437016,5.63546218,1774.5,1774.2,0.52085029]
[1745513437179,5.63543669,1774.5,1774.2,0.52085029]
[1745513437712,5.63583453,1774.4,1774.1,0.8051]
[1745513437903,11.27107211,1774.5,1774.1,6.44167099]
[1745513438084,5.63543669,1774.5,1774.1,7.64951362]
[1745513438409,5.63577239,1774.4,1774.1,7.64958502]
[1745513438587,5.63577239,1774.4,1774.1,2.01294263]
[1745513438788,5.63543669,1774.5,1774.1,2.01294263]
[1745513439000,5.63572036,1774.4,1774.1,2.01294263]
[1745513439602,5.63572036,1774.4,1774.1,7.64957583]
[1745513439803,5.63540758,1774.5,1774.1,7.64957583]
[1745513440175,5.6357465,1774.4,1774.1,2.01294263]
[1745513440508,5.63540758,1774.5,1774.1,7.64957797]
[1745513440711,5.63540758,1774.5,1774.1,7.64951459]
[1745513440912,5.63518176,1774.6,1774.2,6.40111257]